bitfinex/quotes_SOLUSD_20241226
["timestamp","ask_amount","ask_price","bid_price","bid_amount"]
[1735218763603,6.5506,189.06,188.96,25.347884]
[1735218764201,20.0,189.03,188.96,25.347884]
[1735218765099,6.5506,189.06,188.96,25.347884]
[1735218765299,6.5506,189.12,188.98,23.776884]
[1735218765602,0.12549,189.1,188.98,23.776884]
[1735218765807,0.12549,189.08,188.98,23.776884]
[1735218766278,20.99180043,189.09,188.98,23.776884]
[1735218766597,20.99180043,189.09,189.0,23.776884]
[1735218767498,20.0,189.09,189.0,23.776884]
[1735218767710,0.99163721,189.08,189.0,23.776884]
[1735218767903,20.0,189.09,189.0,23.776884]
[1735218768884,6.5506,189.12,189.0,38.97610175]
[1735218769190,6.5506,189.12,189.02,23.776884]
[1735218770404,0.9915592,189.11,189.02,23.776884]
[1735218770701,6.5506,189.12,189.02,23.776884]
[1735218771485,0.99156768,189.11,189.02,23.776884]
[1735218773512,20.0,189.09,188.98,15.9924719]
[1735218773704,20.0,189.09,188.99,15.19921775]
[1735218773904,20.0,189.09,189.0,23.776884]
[1735218775380,20.0,189.09,188.96,1.571]
[1735218775381,1.11722196,189.08,188.97,15.19921775]
[1735218775586,1.11722196,189.08,188.96,17.56360332]
[1735218776779,1.11722196,189.08,188.97,23.776884]
[1735218777378,0.99173196,189.08,188.99,23.776884]
[1735218777885,20.0,189.09,188.99,23.776884]
[1735218778086,20.0,189.09,188.99,38.97610175]
[1735218778306,20.0,189.09,188.99,23.776884]
[1735218781208,20.0,189.09,189.01,23.776884]
[1735218781810,0.99170557,189.08,189.01,23.776884]
[1735218782310,0.99170557,189.08,188.97,13.2296]
[1735218782479,0.12549,189.07,188.96,1.571]
[1735218782683,0.99170557,189.08,188.96,1.571]
[1735218782684,0.12549,189.05,188.96,1.571]
[1735218783307,0.12549,189.05,188.92,1.5763]
[1735218783308,0.12549,189.03,188.92,1.5763]
[1735218783516,0.12549,189.01,188.92,1.5763]
[1735218783900,0.12549,188.98,188.87,1.5763]
[1735218784085,1.1179697,188.98,188.87,1.5763]
[1735218787008,1.1179697,188.98,188.86,23.776884]
[1735218787727,1.1179697,188.98,188.83,13.2388]
[1735218788427,1.1179697,188.98,188.84,23.776884]
[1735218789129,1.1179697,188.98,188.86,38.97610175]
[1735218789441,0.99234449,188.97,188.88,23.776884]
[1735218789607,0.12549,189.01,188.88,23.776884]
[1735218790624,20.12549,188.99,188.86,23.776884]
[1735218790805,0.12549,188.97,188.86,23.776884]
[1735218791005,0.12549,188.97,188.86,24.57081789]
[1735218791724,0.12549,188.96,188.86,24.57081789]
[1735218791927,0.99241568,188.97,188.86,24.57081789]
[1735218792833,0.12549,188.98,188.86,24.57081789]
[1735218793023,0.99237144,188.97,188.86,24.57081789]
[1735218793828,0.99237144,188.97,188.86,39.77003564]
[1735218794023,6.0414,189.03,188.9,15.19921775]
[1735218794205,0.99217585,189.02,188.91,23.776884]
[1735218794411,0.99217585,189.02,188.89,23.776884]
[1735218794617,0.12549,189.01,188.89,23.776884]
[1735218794824,0.12549,188.99,188.88,17.60874023]
[1735218795211,20.0,189.0,188.89,23.776884]
[1735218795417,0.99225357,188.99,188.91,23.776884]
[1735218795826,20.0,189.0,188.91,23.776884]
[1735218797615,6.0414,189.03,188.93,23.776884]
[1735218797823,0.99207588,189.02,188.93,23.776884]
[1735218798331,0.12549,189.01,188.92,0.79369818]
[1735218798523,0.99221718,189.0,188.91,13.2331]
[1735218798725,20.99221718,189.0,188.91,13.2331]
[1735218799618,0.99221718,189.0,188.92,23.776884]
[1735218799933,6.0414,189.03,188.93,13.2324]
[1735218800256,6.0414,189.03,188.94,39.76970372]
[1735218802630,6.0414,189.03,188.94,24.57048597]
[1735218803736,6.0414,189.03,188.94,0.79360197]
[1735218803939,6.0414,189.03,188.93,13.2324]
[1735218804137,6.0414,189.03,188.94,23.776884]
[1735218807456,6.0414,189.03,188.96,23.776884]
[1735218807619,6.0491,189.08,188.96,38.97610175]
[1735218807821,0.99184283,189.07,188.96,23.776884]
[1735218808119,20.0,188.97,188.82,16.45370591]
[1735218808340,0.12549,188.95,188.84,0.7939423]
[1735218808531,0.12549,188.95,188.83,8.22685295]
[1735218808737,0.12549,188.95,188.83,15.99332694]
[1735218809114,0.12549,188.95,188.84,23.776884]
[1735218809435,0.99242787,188.96,188.86,23.776884]
[1735218810128,20.0,188.97,188.88,23.776884]
[1735218810465,0.99237953,188.99,188.9,23.776884]
[1735218811960,0.12549,188.98,188.86,13.2366]
[1735218812166,0.12549,188.96,188.84,0.79384725]
[1735218812473,0.12549,188.96,188.82,28.43881775]
[1735218812864,0.12549,188.96,188.83,23.776884]
[1735218813370,0.12549,188.94,188.82,13.2396]
[1735218813537,20.0,188.92,188.8,15.19921775]
[1735218813741,0.9927304,188.91,188.8,15.19921775]
[1735218814059,0.9927304,188.91,188.81,23.776884]
[1735218814459,0.9927304,188.91,188.8,15.19921775]
[1735218814763,0.9927304,188.91,188.82,52.21620175]
[1735218814975,20.0,188.92,188.83,0.79406946]
[1735218815138,0.99272153,188.94,188.83,15.99328721]
[1735218815584,0.99272153,188.94,188.83,0.79406946]
[1735218816156,0.99272153,188.94,188.82,52.21620175]
[1735218816353,20.0,188.92,188.82,37.016984]
[1735218816672,0.99269385,188.91,188.82,37.016984]
[1735218817471,20.0,188.92,188.82,53.01034631]
[1735218817773,0.99262213,188.94,188.82,53.01034631]
[1735218818677,0.99262213,188.94,188.83,15.19921775]
[1735218819289,0.99262213,188.94,188.82,53.01034631]
[1735218820874,0.99262213,188.94,188.83,15.19921775]
[1735218821386,0.99262213,188.94,188.85,23.776884]
[1735218821891,0.99262213,188.94,188.85,38.97610175]
[1735218822187,0.99262213,188.94,188.87,23.776884]
[1735218822394,6.6567,188.95,188.87,23.776884]
[1735218823393,6.6567,188.95,188.89,23.776884]
[1735218824886,6.6567,188.95,188.89,38.97610175]
[1735218825598,6.6567,188.95,188.89,23.776884]
[1735218826365,20.0,189.01,188.91,23.776884]
[1735218826584,0.99222231,189.0,188.91,23.776884]
[1735218827472,0.99222231,189.0,188.93,23.776884]
[1735218827813,0.12549,189.02,188.93,23.776884]
[1735218828095,0.99215806,189.01,188.93,23.776884]
[1735218830008,1.11765903,189.02,188.93,23.776884]
[1735218831899,1.11765903,189.02,188.89,13.2351]
[1735218831900,0.12549,189.0,188.89,13.2351]
[1735218832074,0.12549,188.98,188.84,15.19921775]
[1735218832273,1.11798094,188.98,188.85,0.79399275]
[1735218832498,0.12549,188.95,188.85,13.2373]
[1735218832702,1.11811984,188.95,188.85,13.2373]
[1735218832880,1.11811984,188.95,188.83,1.6035]
[1735218833074,0.12549,188.93,188.81,14.03420387]
[1735218833273,1.1182337,188.93,188.81,14.03420387]
[1735218833696,0.9927437,188.93,188.82,38.97610175]
[1735218833904,0.9927437,188.93,188.84,23.776884]
[1735218835906,6.3673,188.94,188.86,23.776884]
[1735218837075,0.99249505,188.93,188.82,149.24]
[1735218837905,0.99249505,188.93,188.83,39.77022022]
[1735218838399,7.35983913,188.94,188.84,13.2387]
[1735218838911,6.3673,188.94,188.85,39.77012397]
[1735218839803,6.3673,188.94,188.87,23.776884]
[1735218840010,6.5349,189.0,188.89,23.776884]
[1735218840206,0.99228126,188.99,188.89,23.776884]
[1735218841402,0.99228126,188.99,188.89,37.011384]
[1735218842009,20.0,188.97,188.89,37.011384]
[1735218842216,0.99239479,188.96,188.89,37.011384]
[1735218842604,0.99239479,188.96,188.86,13.2372]
[1735218842908,0.12549,188.95,188.83,13.2391]
[1735218843487,0.12549,188.95,188.84,23.776884]
[1735218843794,0.99239479,188.96,188.86,38.97610175]
[1735218844116,0.99238964,188.99,188.87,0.79391171]
[1735218844333,0.12549,188.98,188.83,13.2391]
[1735218844611,0.12549,188.96,188.84,23.776884]
[1735218845208,20.0,188.94,188.84,23.776884]
[1735218845419,1.11814258,188.96,188.86,23.776884]
[1735218845588,0.99265258,188.96,188.86,23.776884]
[1735218845789,6.5349,188.97,188.88,23.776884]
[1735218846101,0.99238662,188.96,188.88,23.776884]
[1735218847598,6.5349,188.97,188.9,23.776884]
[1735218848903,4.3864914,188.97,188.9,23.776884]
[1735218849399,0.99230014,188.96,188.89,13.2352]
[1735218849717,0.99230014,188.96,188.87,136.0]
[1735218849718,0.12549,188.95,188.87,136.0]
[1735218849902,0.12549,188.95,188.82,13.2399]
[1735218849903,20.0,188.94,188.82,13.2399]
[1735218850101,0.9926635,188.93,188.82,13.2399]
[1735218850502,0.9926635,188.93,188.83,23.776884]
[1735218851518,0.9926635,188.93,188.82,29.23321138]
[1735218851722,20.0,188.94,188.84,28.43791775]
[1735218851893,4.3864914,188.97,188.86,23.776884]
[1735218852095,4.3864914,188.97,188.88,23.776884]
[1735218852621,4.3864914,188.97,188.9,23.776884]
[1735218853302,4.3864914,188.97,188.92,23.776884]
[1735218854123,6.3329,189.01,188.92,23.776884]
[1735218856020,6.3329,189.01,188.94,38.97610175]
[1735218856527,6.3329,189.01,188.94,23.776884]
[1735218857127,6.3329,189.01,188.96,23.776884]
[1735218857500,6.3329,189.01,188.95,13.231]
[1735218857828,6.3329,189.01,188.92,13.2329]
[1735218858010,0.99209933,189.0,188.92,13.2329]
[1735218860634,6.3329,189.01,188.93,23.776884]
[1735218861020,6.3329,189.01,188.95,23.776884]
[1735218873250,6.2547,189.05,188.95,23.776884]
[1735218873447,0.99197348,189.04,188.96,13.2303]
[1735218873752,6.2547,189.09,188.97,39.76967651]
[1735218874041,0.99178344,189.08,188.97,39.76967651]
[1735218875044,0.99178344,189.08,188.99,23.776884]
[1735218875238,6.2547,189.09,189.01,23.776884]
[1735218875545,0.99169017,189.08,188.99,23.776884]
[1735218875927,0.99169017,189.08,188.99,24.57029164]
[1735218876914,6.2547,189.09,189.01,23.776884]
[1735218877637,6.2547,189.09,189.01,24.57024957]
[1735218878219,6.2547,189.09,189.03,23.776884]
[1735218878626,6.2238,189.14,189.03,24.57016552]
[1735218878824,0.99148871,189.13,189.03,24.57016552]
[1735218879048,0.12549,189.12,189.02,13.2261]
[1735218879260,0.12549,189.1,188.99,13.228]
[1735218879765,20.0,189.11,188.99,13.228]
[1735218879934,0.99168422,189.1,189.0,23.776884]
[1735218880129,0.99168422,189.1,189.01,13.2268]
[1735218882340,0.99168422,189.1,189.01,22.92025188]
[1735218882534,6.2238,189.14,189.03,37.002284]
[1735218882736,6.2238,189.14,189.05,23.776884]
[1735218883151,6.2238,189.14,189.05,33.47033588]
[1735218883661,6.2238,189.14,189.05,37.000284]
[1735218884228,6.2238,189.14,189.05,52.13857026]
[1735218884448,6.2238,189.14,189.07,23.776884]
[1735218884664,0.99133315,189.21,189.12,38.91517026]
[1735218884853,0.99107498,189.24,189.13,0.79285998]
[1735218885053,0.12549,189.23,189.13,0.79285998]
[1735218885362,0.99107596,189.22,189.13,0.79285998]
[1735218885531,0.99111664,189.27,189.12,23.776884]
[1735218885737,0.12549,189.26,189.12,23.776884]
[1735218885934,0.12549,189.24,189.12,23.776884]
[1735218886158,0.12549,189.19,189.07,28.36038626]
[1735218886339,1.11682202,189.19,189.07,28.36038626]
[1735218887159,1.11682202,189.19,189.09,23.776884]
[1735218887785,0.99133202,189.19,189.1,13.2205]
[1735218888096,0.99116929,189.19,189.11,23.776884]
[1735218890487,20.0,189.2,189.11,23.776884]
[1735218890977,0.99115831,189.22,189.12,0.79292196]
[1735218891185,0.99115831,189.22,189.13,23.776884]
[1735218892989,20.0,189.2,189.09,15.13828626]
[1735218893190,0.99122623,189.19,189.09,15.13828626]
[1735218893880,0.99122623,189.19,189.08,0.79298099]
[1735218893881,0.99122623,189.19,189.11,23.776884]
[1735218894389,20.0,189.2,189.11,21.98718288]
[1735218895369,0.99116497,189.19,189.11,21.98718288]
[1735218895568,20.0,189.2,189.11,21.98718288]
[1735218895770,0.99116495,189.19,189.11,21.98718288]
[1735218898487,0.99116495,189.19,189.11,37.12546914]
[1735218898987,20.0,189.2,189.11,37.12546914]
[1735218899167,0.99117708,189.19,189.11,37.12546914]
[1735218899368,20.0,189.2,189.11,37.12546914]
[1735218899569,0.99115529,189.19,189.11,21.98718288]
[1735218899763,0.99115529,189.19,189.1,15.93125242]
[1735218900088,0.99115529,189.19,189.09,13.2205]
[1735218900460,0.12549,189.18,189.08,15.13828626]
[1735218900660,0.12549,189.15,189.04,5.19840566]
[1735218900972,0.12549,189.15,189.0,13.2272]
[1735218900973,0.12549,189.12,189.0,13.2272]
[1735218901178,1.1171772,189.12,189.0,28.36548626]
[1735218901789,20.0,189.08,189.0,13.2272]
[1735218901978,0.99180991,189.07,188.99,15.13828626]
[1735218902183,0.99180991,189.07,188.98,15.13828626]
[1735218902390,0.99180991,189.07,188.99,23.776884]
[1735218905199,20.0,189.08,188.99,15.13828626]
[1735218906806,6.3102,189.11,189.01,15.13828626]
[1735218907099,0.99168713,189.1,189.01,15.13828626]
[1735218907708,6.3102,189.11,189.02,39.7085168]
[1735218908074,0.99154985,189.1,189.02,38.91517026]
[1735218908395,0.99154985,189.1,188.99,28.36588626]
[1735218909004,20.0,189.08,188.99,28.36588626]
[1735218909174,0.99182898,189.07,188.99,28.36588626]
[1735218909508,20.0,189.08,188.99,28.36588626]
[1735218909680,20.0,189.08,188.99,29.15930191]
[1735218909881,0.12549,189.1,189.0,15.13828626]
[1735218910101,0.99175217,189.1,189.01,23.776884]
[1735218910300,6.3102,189.11,189.02,15.13828626]
[1735218910602,6.3102,189.11,189.03,15.9315142]
[1735218911497,6.1156,189.2,189.07,15.13828626]
[1735218911677,6.1156,189.2,189.04,23.776884]
[1735218911678,0.9914003,189.19,189.08,38.91517026]
[1735218911884,0.9914003,189.19,189.09,15.13828626]
[1735218912186,0.9914003,189.19,189.1,15.13828626]
[1735218912597,6.1156,189.2,189.11,15.13828626]
[1735218914115,6.1156,189.2,189.12,38.91517026]
[1735218914276,6.1156,189.2,189.13,15.13828626]
[1735218914684,6.1156,189.2,189.12,38.91517026]
[1735218915081,6.1156,189.2,189.13,15.13828626]
[1735218915281,6.1156,189.2,189.11,0.79288086]
[1735218915282,6.1156,189.2,189.11,23.776884]
[1735218915482,6.1156,189.2,189.13,15.13828626]
[1735218916103,6.1156,189.2,189.14,15.13828626]
[1735218916303,6.1156,189.25,189.15,15.13828626]
[1735218916508,0.99091232,189.24,189.16,38.91517026]
[1735218918498,6.1156,189.25,189.16,38.91517026]
[1735218918705,6.1156,189.25,189.18,15.13828626]
[1735218919307,6.1156,189.25,189.17,15.13828626]
[1735218919817,6.1156,189.25,189.16,0.7926497]
[1735218919818,6.1156,189.25,189.18,15.13828626]
[1735218920029,6.1156,189.25,189.18,15.93099761]
[1735218920802,6.1156,189.25,189.16,0.79259241]
[1735218921001,6.1156,189.25,189.18,23.776884]
[1735218921511,6.1156,189.25,189.18,15.13828626]
[1735218921706,6.1156,189.25,189.18,15.93091371]
[1735218922486,6.1156,189.25,189.19,15.13828626]
[1735218922688,6.1156,189.25,189.18,38.91517026]
[1735218924508,6.1939,189.32,189.22,15.13828626]
[1735218924695,0.99059935,189.31,189.23,15.13828626]
[1735218925800,0.99059935,189.31,189.22,15.13828626]
[1735218925801,0.12549,189.3,189.22,15.13828626]
[1735218926004,1.1161765,189.3,189.22,15.13828626]
[1735218927214,0.12549,189.3,189.22,15.13828626]
[1735218927513,0.12549,189.3,189.21,15.13828626]
[1735218927686,0.99064045,189.31,189.22,15.93079912]
[1735218928018,0.99053614,189.31,189.21,15.13828626]
[1735218928913,0.99053614,189.31,189.22,15.13828626]
[1735218929235,6.1939,189.32,189.22,15.13828626]
[1735218929921,6.1939,189.32,189.24,23.776884]
[1735218930518,6.1939,189.32,189.25,15.13828626]
[1735218930702,6.1939,189.32,189.24,15.13828626]
[1735218931511,6.1939,189.32,189.26,23.776884]
[1735218931690,6.1939,189.32,189.26,38.91517026]
[1735218931896,6.1939,189.32,189.26,23.776884]
[1735218932194,20.0,189.37,189.26,23.776884]
[1735218932393,20.0,189.37,189.22,1.6575]
[1735218932394,20.0,189.32,189.17,137.6575]
[1735218932600,0.99068717,189.31,189.19,15.13828626]
[1735218933005,0.99068717,189.31,189.2,38.91517026]
[1735218933906,0.99068717,189.31,189.19,38.91517026]
[1735218934101,0.12549,189.3,189.19,38.91517026]
[1735218934424,0.12549,189.28,189.17,16.79578626]
[1735218934623,1.11628615,189.28,189.17,15.13828626]
[1735218934916,20.0,189.26,189.17,15.13828626]
[1735218935598,20.0,189.26,189.15,0.79263692]
[1735218935599,0.12549,189.25,189.16,15.13828626]
[1735218935806,1.11628943,189.25,189.14,15.13828626]
[1735218936196,1.11628943,189.25,189.13,16.68798626]
[1735218936906,1.11628943,189.25,189.14,15.13828626]
[1735218937519,1.11628943,189.25,189.16,23.776884]
[1735218937520,0.99079943,189.25,189.16,23.776884]
[1735218937822,0.99094211,189.28,189.18,38.91517026]
[1735218938120,0.99094211,189.28,189.19,15.13828626]
[1735218939530,6.0941,189.29,189.2,23.776884]
[1735218939825,0.99068773,189.28,189.19,15.13828626]
[1735218941037,0.99068773,189.28,189.19,23.776884]
[1735218942126,0.99068773,189.28,189.16,24.5694749]
[1735218942332,6.0941,189.29,189.21,15.13828626]
[1735218942911,0.99063637,189.28,189.19,15.13828626]
[1735218943218,0.99063637,189.28,189.19,38.91517026]
[1735218943531,6.0941,189.29,189.2,15.13828626]
[1735218943723,6.0941,189.29,189.21,15.13828626]
[1735218943931,6.0941,189.29,189.22,38.91517026]
[1735218944233,6.0941,189.38,189.24,38.91517026]
[1735218944532,0.99042865,189.37,189.25,15.13828626]
[1735218945344,0.12549,189.36,189.25,15.13828626]
[1735218945512,0.99038104,189.35,189.25,15.13828626]
[1735218945826,20.99038104,189.35,189.25,15.13828626]
[1735218946006,20.99038104,189.35,189.24,24.56921064]
[1735218946203,20.99038104,189.35,189.23,15.13828626]
[1735218946430,0.12549,189.34,189.24,23.776884]
[1735218946639,0.99050742,189.33,189.24,23.776884]
[1735218946933,0.99050742,189.33,189.24,38.91517026]
[1735218947109,1.11593427,189.34,189.24,38.91517026]
[1735218948435,0.99043168,189.34,189.24,38.91517026]
[1735218948754,0.12549,189.36,189.24,38.91517026]
[1735218948926,0.9904189,189.35,189.24,38.91517026]
[1735218949538,0.12549,189.34,189.24,23.776884]
[1735218949707,0.99048366,189.33,189.24,23.776884]
[1735218950645,0.99047564,189.34,189.24,23.776884]
[1735218950810,0.12549,189.29,189.22,0.79240333]
[1735218951014,20.12549,189.24,189.1,0.79236997]
[1735218951329,0.12549,189.17,189.07,9.82875663]
[1735218951536,1.11692732,189.17,189.04,15.93143612]
[1735218951705,0.12549,189.15,189.03,15.13828626]
[1735218951907,1.11708914,189.15,189.02,15.13828626]
[1735218952222,0.12549,189.13,189.01,17.44810815]
[1735218952541,20.0,189.14,189.06,15.13828626]
[1735218952708,0.12549,189.17,189.06,15.13828626]
[1735218953038,1.11690784,189.17,189.06,15.93142053]
[1735218953233,1.11690784,189.17,189.07,15.13828626]
[1735218953406,1.11690784,189.17,189.04,15.13828626]
[1735218954523,1.11690784,189.17,189.05,15.13828626]
[1735218954722,21.11690784,189.17,189.05,15.13828626]
[1735218955531,21.11690784,189.17,189.04,15.13828626]
[1735218956231,1.11690784,189.17,189.04,15.13828626]
[1735218956731,1.11690784,189.17,189.05,15.13828626]
[1735218957117,20.0,189.13,188.96,1.5166]
[1735218957316,20.12549,189.11,188.97,15.13828626]
[1735218957538,0.12549,189.09,188.97,15.13828626]
[1735218958644,0.12549,189.09,188.99,15.13828626]
[1735218958846,0.12549,189.08,188.98,15.93176978]
[1735218959739,20.0,189.09,188.98,15.93176978]
[1735218961536,36.0326,189.16,188.99,15.13828626]
[1735218961746,20.12549,189.12,188.99,15.13828626]
[1735218962764,20.12549,189.12,188.98,15.93167911]
[1735218964257,20.12549,189.12,188.98,0.79339285]
[1735218964824,0.12549,189.1,188.97,35.13828626]
[1735218965930,0.12549,189.1,188.98,23.776884]
[1735218966130,20.0,189.13,189.01,15.13828626]
[1735218966854,20.0,189.13,189.02,38.91517026]
[1735218967036,20.0,189.13,189.03,15.13828626]
[1735218967241,0.12549,189.15,189.04,0.79322023]
[1735218967564,23.902374,189.15,188.98,0.79321868]
[1735218967735,23.902374,189.15,188.99,15.13828626]
[1735218968231,23.902374,189.15,189.0,15.13828626]
[1735218968759,0.12549,189.11,189.0,15.13828626]
[1735218970267,6.0326,189.16,189.02,15.13828626]
[1735218971556,20.0,189.13,189.03,23.776884]
[1735218971739,6.0326,189.16,189.03,15.93148393]
[1735218972057,6.0326,189.16,189.04,15.13828626]
[1735218972258,20.0,189.13,189.01,38.91517026]
[1735218972461,20.0,189.13,189.01,23.776884]
[1735218972637,20.12549,189.12,189.0,15.93163]
[1735218973640,20.12549,189.12,189.01,15.13828626]
[1735218973840,20.12549,189.12,189.01,15.93160058]
[1735218974169,20.0,189.13,189.02,15.13828626]
[1735218974837,20.0,189.13,189.02,28.36438626]
[1735218975169,20.0,189.13,189.02,15.93157366]
[1735218977072,20.0,189.13,189.02,0.7932874]
[1735218979070,6.0326,189.16,189.05,15.13828626]
[1735218979240,6.487,189.21,189.07,23.776884]
[1735218979440,0.12549,189.2,189.07,38.91517026]
[1735218980076,6.487,189.21,189.07,38.91517026]
[1735218980369,0.12549,189.2,189.07,38.91517026]
[1735218980972,0.12549,189.2,189.08,0.79306055]
[1735218981374,20.0,189.18,189.07,38.91517026]
[1735218981549,20.0,189.18,189.07,23.776884]
[1735218982076,20.0,189.18,189.08,0.79307389]
[1735218989172,20.0,189.18,189.08,15.93136015]
[1735218989676,6.487,189.21,189.1,15.13828626]
[1735218989880,6.487,189.21,189.1,15.93118071]
[1735218990184,6.487,189.21,189.11,15.13828626]
[1735218990484,6.90795395,189.26,189.13,15.13828626]
[1735218990485,6.487,189.26,189.13,15.13828626]
[1735218990857,6.487,189.26,189.14,15.13828626]
[1735218991051,6.487,189.26,189.12,17.59175737]
[1735218991251,0.12549,189.25,189.12,17.59175737]
[1735218991571,20.0,189.23,189.12,26.23035511]
[1735218992087,0.12549,189.25,189.13,15.13828626]
[1735218992376,0.12549,189.25,189.14,15.93108161]
[1735218994989,6.487,189.26,189.14,15.93108161]
[1735218996682,6.487,189.26,189.14,0.79279535]
[1735218996887,20.0,189.27,189.14,0.79279535]
[1735218997100,20.0,189.26,189.12,1.6606]
[1735218997263,0.12549,189.25,189.12,1.6606]
[1735218999388,20.0,189.27,189.13,23.776884]
[1735218999593,20.0,189.27,189.14,15.13828626]
[1735218999897,20.0,189.27,189.15,0.79269737]
[1735219000090,20.0,189.27,189.13,39.70792863]
[1735219000275,0.12549,189.27,189.13,39.70792863]
[1735219000475,20.12549,189.27,189.13,39.70792863]
[1735219000706,20.12549,189.27,189.14,15.13828626]
[1735219001300,20.12549,189.27,189.13,39.70792863]
[1735219001777,20.12549,189.27,189.15,23.776884]
[1735219002372,20.12549,189.27,189.15,24.56961372]
[1735219003035,0.12549,189.29,189.15,39.70789998]
[1735219003206,6.2778,189.31,189.15,52.92479998]
[1735219003399,0.12549,189.3,189.17,23.776884]
[1735219003592,6.2778,189.31,189.19,38.91517026]
[1735219003900,6.2778,189.31,189.2,17.53759851]
[1735219004373,6.2778,189.31,189.2,2.39931225]
[1735219006684,6.2778,189.31,189.21,23.776884]
[1735219006887,6.2778,189.31,189.22,0.79242644]
[1735219007280,15.64349839,189.38,189.23,38.91517026]
[1735219007281,6.1783,189.36,189.23,38.91517026]
[1735219007486,6.1783,189.36,189.24,0.79230555]
[1735219008687,20.0,189.33,189.24,0.79230555]
[1735219010209,6.1783,189.36,189.24,0.79230555]
[1735219010606,6.1783,189.36,189.24,15.93059181]
[1735219011506,6.1783,189.36,189.25,23.776884]
[1735219011809,20.0,189.39,189.26,0.79227342]
[1735219012116,23.902374,189.4,189.26,0.79227342]
[1735219013206,20.0,189.37,189.26,0.79227342]
[1735219013509,23.902374,189.36,189.23,20.0]
[1735219013699,20.0,189.33,189.2,8.92177192]
[1735219014016,20.0,189.29,189.2,1.6068]
[1735219018111,0.12549,189.28,189.15,6.2037]
[1735219018283,20.0,189.25,189.15,7.8443]
[1735219018711,0.12549,189.24,189.15,1.6406]
[1735219019709,20.0,189.25,189.15,1.6406]
[1735219020186,20.0,189.25,189.15,2.43341364]
[1735219020383,20.0,189.25,189.15,1.6406]
[1735219020694,0.12549,189.28,189.15,1.6406]
[1735219021016,20.12549,189.28,189.15,1.6406]
[1735219024492,23.776884,189.31,189.15,17.57161159]
[1735219025626,23.776884,189.31,189.16,38.91517026]
[1735219025792,20.0,189.28,189.17,0.79260071]
[1735219026609,20.0,189.29,189.18,6.4772]
[1735219028029,20.0,189.25,189.15,1.6406]
[1735219029087,20.0,189.25,189.15,2.43339612]
[1735219029830,20.0,189.28,189.16,23.776884]
[1735219030000,6.4786,189.32,189.17,0.79259799]
[1735219030197,23.902374,189.31,189.17,15.93088425]
[1735219030719,6.4786,189.32,189.18,38.91517026]
[1735219030921,0.12549,189.31,189.18,23.776884]
[1735219031319,20.0,189.29,189.18,23.776884]
[1735219032828,20.0,189.29,189.19,0.79255337]
[1735219033065,20.0,189.29,189.18,23.776884]
[1735219034232,20.0,189.29,189.19,0.79255143]
[1735219034409,20.0,189.29,189.18,23.776884]
[1735219035533,20.0,189.29,189.19,0.79259223]
[1735219035715,20.0,189.31,189.2,8.0497]
[1735219036739,20.0,189.31,189.21,0.7924777]
[1735219038056,1.30611394,189.35,189.23,1.5725]
[1735219038231,9.41673357,189.38,189.24,0.79233609]
[1735219038420,15.64209839,189.4,189.24,0.79233609]
[1735219038750,15.64209839,189.4,189.24,15.93062235]
[1735219038950,6.40239839,189.4,189.27,23.776884]
[1735219039135,6.40239839,189.4,189.27,39.7073588]
[1735219039336,0.12549,189.39,189.26,8.0497]
[1735219040142,23.902374,189.39,189.26,8.0497]
[1735219040323,20.0,189.36,189.26,8.0497]
[1735219041450,20.0,189.37,189.26,23.98026394]
[1735219041634,20.0,189.37,189.26,8.84197768]
[1735219044169,20.0,189.37,189.26,8.0497]
[1735219044652,20.0,189.37,189.26,8.84196983]
[1735219044828,20.0,189.37,189.26,8.0497]
[1735219047954,20.0,189.37,189.26,8.84196748]
[1735219048867,20.0,189.37,189.26,8.0497]
[1735219051058,20.0,189.33,189.26,8.0497]
[1735219051361,0.12549,189.32,189.26,1.5725]
[1735219051533,20.0,189.29,189.22,1.5869]
[1735219052257,0.12549,189.3,189.22,1.5869]
[1735219052464,20.12549,189.3,189.22,1.5869]
[1735219055072,20.0,189.3,189.22,1.5869]